[Event "Asian Zonal-ch 3.5 Women 2019"]
[Site "Zi Bo"]
[Date "2019.09.06"]
[Round "3.1"]
[White "Zhu, Jiner"]
[Black "Huang, Qian"]
[Result "1-0"]
[ECO "B90"]
[WhiteElo "2471"]
[BlackElo "2429"]
[Annotator "ChessBase"]
[PlyCount "75"]
[EventDate "2019.09.05"]
[EventType "swiss"]
[EventCountry "CHN"]
[SourceTitle "playchess.com"]
[Source "ChessBase"]
[SourceQuality "1"]
[TimeControl "5400+30"]

1. e4 {[%emt 0:00:00]} c5 {[%emt 0:01:32]} 2. Nf3 {[%emt 0:00:00]} d6 {[%emt 0:00:07]} 3. d4 {[%emt 0:00:00]} cxd4 {[%emt 0:00:09]} 4. Nxd4 {[%emt 0:00:00]} Nf6 {[%emt 0:00:08]} 5. Nc3 {[%emt 0:00:00]} a6 {[%emt 0:00:06]} 6. Be3 {[%emt 0:00:03]} e5 {[%emt 0:00:34]} 7. Nb3 {[%emt 0:00:06]} Be7 {[%emt 0:00:09]} 8. f3 {[%emt 0:00:06]} Be6 {[%emt 0:02:51]} 9. Qd2 {[%emt 0:00:14]} O-O {[%emt 0:00:44]} 10. O-O-O {[%emt 0:00:34]} a5 {[%emt 0:00:36]} 11. a4 {[%emt 0:00:36]} Na6 {[%emt 0:02:25]} 12. g4 {[%emt 0:05:29]} Nb4 {[%emt 0:02:24]} 13. Kb1 {[%emt 0:05:51]} Rc8 {[%emt 0:18:02]} 14. Bb5 {[%emt 0:06:08]} Qc7 {[%emt 0:07:47]} 15. g5 {[%emt 0:03:17]} Nd7 {[%emt 0:00:28]} 16. f4 {[%emt 0:09:20]} exf4 {[%emt 0:24:19]} 17. Bxf4 {[%emt 0:00:06]} Ne5 {[%emt 0:00:03]} 18. Nd4 {[%emt 0:00:18]} Bg4 {[%emt 0:00:16]} 19. Rdf1 {[%emt 0:06:20]} Rfd8 {[%emt 0:10:48]} 20. h3 {[%emt 0:13:00]} Bh5 {[%emt 0:00:23]} 21. Nf5 {[%emt 0:00:28]} Bg6 {[%emt 0:01:03]} 22. Ne3 {[%emt 0:12:35]} Bf8 {[%emt 0:04:42]} 23. h4 {[%emt 0:01:59]} d5 {[%emt 0:08:35]} 24. Qh2 {[%emt 0:00:21]} Qc5 {[%emt 0:00:52]} 25. exd5 {[%emt 0:03:08]} Ng4 {[%emt 0:06:09]} 26. Nxg4 {[%emt 0:00:43]} Nxc2 {[%emt 0:00:04]} 27. Ne5 {[%emt 0:05:01]} Na3+ {[%emt 0:00:41]} 28. Ka2 {[%emt 0:00:19]} Nxb5 {[%emt 0:00:13]} 29. axb5 {[%emt 0:00:10]} Be4 {[%emt 0:01:16]} 30. Qh3 {[%emt 0:14:32]} Bxh1 {[%emt 0:00:39]} 31. Rxh1 {[%emt 0:00:25]} Bd6 {[%emt 0:03:46]} 32. Rf1 {[%emt 0:05:07]} Rc7 {[%emt 0:02:04]} 33. Be3 {[%emt 0:02:30]} Qb4 {[%emt 0:00:44]} 34. Rf4 {[%emt 0:00:23]} Bxe5 {[%emt 0:00:19]} 35. Rxb4 {[%emt 0:00:07]} axb4 {[%emt 0:00:01]} 36. Na4 {[%emt 0:01:18]} Rxd5 {[%emt 0:00:15]} 37. Bb6 {[%emt 0:01:29]} Rc1 {[%emt 0:01:06]} 38. Nc3 {[%emt 0:00:25]} 1-0

[Event "Asian Zonal-ch 3.5 Women 2019"]
[Site "Zi Bo"]
[Date "2019.09.06"]
[Round "3.2"]
[White "Yuan, Ye"]
[Black "Lei, Tingjie"]
[Result "0-1"]
[ECO "E16"]
[WhiteElo "2092"]
[BlackElo "2483"]
[Annotator "ChessBase"]
[PlyCount "82"]
[EventDate "2019.09.05"]
[EventType "swiss"]
[EventCountry "CHN"]
[SourceTitle "playchess.com"]
[Source "ChessBase"]
[SourceQuality "1"]
[TimeControl "5400+30"]

1. d4 {[%emt 0:00:00]} Nf6 {[%emt 0:00:00]} 2. c4 {[%emt 0:00:00]} e6 {[%emt 0:00:00]} 3. Nf3 {[%emt 0:00:00]} b6 {[%emt 0:00:00]} 4. g3 {[%emt 0:00:49]} Bb7 {[%emt 0:00:02]} 5. Bg2 {[%emt 0:00:05]} g6 {[%emt 0:00:24]} 6. O-O {[%emt 0:00:14]} Bg7 {[%emt 0:00:05]} 7. Nc3 {[%emt 0:00:48]} Ne4 {[%emt 0:00:09]} 8. Bd2 {[%emt 0:02:19]} O-O {[%emt 0:00:10]} 9. d5 {[%emt 0:02:02]} Nxc3 {[%emt 0:05:56]} 10. Bxc3 {[%emt 0:00:23]} Bxc3 {[%emt 0:00:10]} 11. bxc3 {[%emt 0:00:05]} d6 {[%emt 0:08:07]} 12. Nd2 {[%emt 0:15:31]} e5 {[%emt 0:00:24]} 13. e4 {[%emt 0:04:16]} Nd7 {[%emt 0:00:28]} 14. Qe2 {[%emt 0:04:32]} Qe7 {[%emt 0:00:51]} 15. Rae1 {[%emt 0:01:58]} c6 {[%emt 0:14:08]} 16. f4 {[%emt 0:03:18]} Rac8 {[%emt 0:03:56]} 17. Rf3 {[%emt 0:06:41]} Ba6 {[%emt 0:11:38]} 18. Qf2 {[%emt 0:04:40]} Rc7 {[%emt 0:16:38]} 19. Bh3 {[%emt 0:09:45]} cxd5 {[%emt 0:06:18]} 20. cxd5 {[%emt 0:00:34]} Nc5 {[%emt 0:00:03]} 21. Ree3 {[%emt 0:01:36]} f6 {[%emt 0:00:07]} 22. Kg2 {[%emt 0:09:39]} Kg7 {[%emt 0:02:15]} 23. Qe1 {[%emt 0:03:12]} Qe8 {[%emt 0:01:41]} 24. Kg1 {[%emt 0:07:26]} Re7 {[%emt 0:06:43]} 25. Bf1 {[%emt 0:04:27]} Qa4 {[%emt 0:10:24]} 26. Bxa6 {[%emt 0:01:37]} Qxa6 {[%emt 0:00:03]} 27. Qb1 {[%emt 0:00:08]} Rc8 {[%emt 0:01:13]} 28. Rf1 {[%emt 0:05:51]} b5 {[%emt 0:01:08]} 29. Rc1 {[%emt 0:02:22]} Qb6 {[%emt 0:02:05]} 30. Kf2 {[%emt 0:02:04]} exf4 {[%emt 0:04:30]} 31. gxf4 {[%emt 0:00:02]} Nxe4+ {[%emt 0:02:20]} 32. Nxe4 {[%emt 0:00:04]} Rc4 {[%emt 0:00:02]} 33. Kf3 {[%emt 0:02:13]} f5 {[%emt 0:00:03]} 34. Rce1 {[%emt 0:01:03]} fxe4+ {[%emt 0:00:07]} 35. Rxe4 {[%emt 0:00:13]} Rexe4 {[%emt 0:00:06]} 36. Rxe4 {[%emt 0:00:04]} Rxc3+ {[%emt 0:01:35]} 37. Kg2 {[%emt 0:00:14]} Qc5 {[%emt 0:00:29]} 38. Re7+ {[%emt 0:01:23]} Kh6 {[%emt 0:01:00]} 39. Qe4 {[%emt 0:00:38]} Rc2+ {[%emt 0:00:17]} 40. Kh3 {[%emt 0:01:15]} Qc3+ {[%emt 0:00:05]} 41. Kg4 {[%emt 0:00:05]} Rxh2 {[%emt 0:00:51]} 0-1

[Event "Asian Zonal-ch 3.5 Women 2019"]
[Site "Zi Bo"]
[Date "2019.09.06"]
[Round "3.3"]
[White "Zhai, Mo"]
[Black "Zhang, Lanlin"]
[Result "1-0"]
[ECO "E08"]
[WhiteElo "2360"]
[BlackElo "2203"]
[Annotator "ChessBase"]
[PlyCount "70"]
[EventDate "2019.09.05"]
[EventType "swiss"]
[EventCountry "CHN"]
[SourceTitle "playchess.com"]
[Source "ChessBase"]
[SourceQuality "1"]
[TimeControl "5400+30"]

1. Nf3 {[%emt 0:00:00]} d5 {[%emt 0:03:22]} 2. g3 {[%emt 0:00:00]} Nf6 {[%emt 0:06:10]} 3. Bg2 {[%emt 0:00:06]} Nbd7 {[%emt 0:00:08]} 4. d4 {[%emt 0:00:38]} e6 {[%emt 0:00:35]} 5. O-O {[%emt 0:02:47]} Be7 {[%emt 0:01:08]} 6. c4 {[%emt 0:01:26]} O-O {[%emt 0:00:42]} 7. Qc2 {[%emt 0:04:20]} a6 {[%emt 0:01:32]} 8. Nbd2 {[%emt 0:06:35]} h6 {[%emt 0:11:25]} 9. Rd1 {[%emt 0:01:34]} Rb8 {[%emt 0:02:17]} 10. a3 {[%emt 0:10:47]} Re8 {[%emt 0:11:52]} 11. b4 {[%emt 0:06:35]} Nf8 {[%emt 0:09:09]} 12. Bb2 {[%emt 0:03:55]} c6 {[%emt 0:02:06]} 13. e4 {[%emt 0:03:33]} dxe4 {[%emt 0:01:09]} 14. Nxe4 {[%emt 0:00:11]} a5 {[%emt 0:01:18]} 15. Bc3 {[%emt 0:02:54]} axb4 {[%emt 0:08:30]} 16. axb4 {[%emt 0:02:18]} N8h7 {[%emt 0:00:06]} 17. h4 {[%emt 0:04:45]} Nxe4 {[%emt 0:09:21]} 18. Qxe4 {[%emt 0:00:02]} Nf6 {[%emt 0:00:05]} 19. Qe2 {[%emt 0:03:12]} Bd6 {[%emt 0:00:08]} 20. Ne5 {[%emt 0:01:30]} Qe7 {[%emt 0:00:19]} 21. Qb2 {[%emt 0:05:11]} Nh7 {[%emt 0:04:05]} 22. b5 {[%emt 0:03:41]} f6 {[%emt 0:01:39]} 23. Nd3 {[%emt 0:00:27]} cxb5 {[%emt 0:00:08]} 24. Qxb5 {[%emt 0:00:57]} Bd7 {[%emt 0:00:19]} 25. Qb6 {[%emt 0:00:46]} Rec8 {[%emt 0:01:08]} 26. c5 {[%emt 0:00:58]} Bc7 {[%emt 0:00:16]} 27. Qb3 {[%emt 0:00:20]} Bc6 {[%emt 0:02:16]} 28. Re1 {[%emt 0:02:35]} Bxg2 {[%emt 0:03:20]} 29. Kxg2 {[%emt 0:00:12]} Nf8 {[%emt 0:00:09]} 30. d5 {[%emt 0:02:25]} Qd7 {[%emt 0:00:09]} 31. Nb4 {[%emt 0:00:34]} Be5 {[%emt 0:05:04]} 32. Bxe5 {[%emt 0:01:23]} fxe5 {[%emt 0:00:07]} 33. Rxe5 {[%emt 0:00:49]} exd5 {[%emt 0:01:28]} 34. Nxd5 {[%emt 0:00:38]} Kh8 {[%emt 0:00:08]} 35. Ne7 {[%emt 0:00:19]} Ra8 {[%emt 0:01:39]} 1-0

[Event "Asian Zonal-ch 3.5 Women 2019"]
[Site "Zi Bo"]
[Date "2019.09.06"]
[Round "3.4"]
[White "Li, Yunshan"]
[Black "Ning, Kaiyu"]
[Result "1-0"]
[ECO "D35"]
[WhiteElo "2261"]
[BlackElo "2354"]
[Annotator "ChessBase"]
[PlyCount "149"]
[EventDate "2019.09.05"]
[EventType "swiss"]
[EventCountry "CHN"]
[SourceTitle "playchess.com"]
[Source "ChessBase"]
[SourceQuality "1"]
[TimeControl "5400+30"]

1. d4 {[%emt 0:00:00]} d5 {[%emt 0:00:00]} 2. c4 {[%emt 0:00:00]} e6 {[%emt 0:00:00]} 3. Nc3 {[%emt 0:00:00]} Nf6 {[%emt 0:00:00]} 4. cxd5 {[%emt 0:00:03]} Nxd5 {[%emt 0:00:00]} 5. e4 {[%emt 0:00:21]} Nxc3 {[%emt 0:00:00]} 6. bxc3 {[%emt 0:00:06]} c5 {[%emt 0:00:00]} 7. Rb1 {[%emt 0:00:57]} Be7 {[%emt 0:00:12]} 8. Nf3 {[%emt 0:00:34]} O-O {[%emt 0:00:10]} 9. Bc4 {[%emt 0:00:19]} a6 {[%emt 0:00:32]} 10. a4 {[%emt 0:04:20]} Qc7 {[%emt 0:00:53]} 11. d5 {[%emt 0:13:33]} exd5 {[%emt 0:05:24]} 12. Bxd5 {[%emt 0:00:42]} Nd7 {[%emt 0:05:28]} 13. c4 {[%emt 0:05:54]} Nb6 {[%emt 0:07:00]} 14. O-O {[%emt 0:06:18]} Nxd5 {[%emt 0:05:58]} 15. cxd5 {[%emt 0:00:52]} Bd6 {[%emt 0:12:02]} 16. Re1 {[%emt 0:08:48]} f6 {[%emt 0:00:38]} 17. Qb3 {[%emt 0:04:10]} Re8 {[%emt 0:07:06]} 18. Ba3 {[%emt 0:11:40]} Rb8 {[%emt 0:11:53]} 19. Qb6 {[%emt 0:06:32]} Qxb6 {[%emt 0:00:46]} 20. Rxb6 {[%emt 0:00:02]} Bc7 {[%emt 0:00:02]} 21. Rbb1 {[%emt 0:01:49]} b6 {[%emt 0:03:48]} 22. a5 {[%emt 0:01:09]} bxa5 {[%emt 0:12:30]} 23. Rbc1 {[%emt 0:00:41]} a4 {[%emt 0:01:51]} 24. Rxc5 {[%emt 0:02:16]} Bb6 {[%emt 0:02:36]} 25. Rcc1 {[%emt 0:04:49]} Bd7 {[%emt 0:00:16]} 26. e5 {[%emt 0:01:13]} fxe5 {[%emt 0:00:44]} 27. Nxe5 {[%emt 0:01:44]} Bb5 {[%emt 0:00:01]} 28. Nc6 {[%emt 0:11:59]} Bxc6 {[%emt 0:03:30]} 29. dxc6 {[%emt 0:00:03]} Rxe1+ {[%emt 0:07:07]} 30. Rxe1 {[%emt 0:00:02]} Ba5 {[%emt 0:00:06]} 31. Rc1 {[%emt 0:01:23]} Bc7 {[%emt 0:00:08]} 32. g3 {[%emt 0:07:53]} Rb3 {[%emt 0:00:11]} 33. Bc5 {[%emt 0:01:08]} a3 {[%emt 0:03:03]} 34. Ra1 {[%emt 0:00:08]} Rc3 {[%emt 0:00:04]} 35. Bxa3 {[%emt 0:00:45]} a5 {[%emt 0:00:53]} 36. Bc1 {[%emt 0:02:45]} Rxc6 {[%emt 0:00:06]} 37. Bd2 {[%emt 0:00:08]} Rc5 {[%emt 0:00:32]} 38. f4 {[%emt 0:00:33]} Bb6 {[%emt 0:02:31]} 39. Kf1 {[%emt 0:00:14]} Rh5 {[%emt 0:00:08]} 40. Ra4 {[%emt 0:02:01]} Kf7 {[%emt 0:01:06]} 41. g4 {[%emt 0:01:02]} Rd5 {[%emt 0:02:35]} 42. Ke2 {[%emt 0:00:09]} g6 {[%emt 0:00:08]} 43. Bc3 {[%emt 0:01:29]} Ke6 {[%emt 0:00:45]} 44. Rc4 {[%emt 0:00:21]} Kd7 {[%emt 0:00:12]} 45. Kf3 {[%emt 0:00:46]} Rd3+ {[%emt 0:01:12]} 46. Ke4 {[%emt 0:00:26]} Rh3 {[%emt 0:00:07]} 47. Bd4 {[%emt 0:00:36]} Bc7 {[%emt 0:00:35]} 48. Be5 {[%emt 0:00:36]} Bb6 {[%emt 0:00:37]} 49. f5 {[%emt 0:00:29]} Rh4 {[%emt 0:02:05]} 50. Kd5 {[%emt 0:00:28]} gxf5 {[%emt 0:00:45]} 51. Rc6 {[%emt 0:00:37]} Be3 {[%emt 0:02:10]} 52. gxf5 {[%emt 0:00:17]} Rh5 {[%emt 0:01:36]} 53. Rd6+ {[%emt 0:00:34]} Ke7 {[%emt 0:00:55]} 54. f6+ {[%emt 0:00:10]} Kf7 {[%emt 0:00:21]} 55. Rd7+ {[%emt 0:00:19]} Kg6 {[%emt 0:00:06]} 56. f7 {[%emt 0:01:09]} Bh6 {[%emt 0:00:40]} 57. Ke6 {[%emt 0:00:22]} Rf5 {[%emt 0:00:23]} 58. h4 {[%emt 0:00:29]} Rf3 {[%emt 0:00:56]} 59. Rd8 {[%emt 0:00:40]} a4 {[%emt 0:00:34]} 60. Rg8+ {[%emt 0:00:18]} Kh5 {[%emt 0:00:02]} 61. Bf6 {[%emt 0:00:26]} a3 {[%emt 0:00:44]} 62. f8=Q {[%emt 0:00:39]} Bxf8 {[%emt 0:00:02]} 63. Rxf8 {[%emt 0:00:07]} Rb3 {[%emt 0:01:25]} 64. Ra8 {[%emt 0:00:24]} Kg6 {[%emt 0:01:32]} 65. Be7 {[%emt 0:01:02]} Re3+ {[%emt 0:00:01]} 66. Kd7 {[%emt 0:00:13]} Kh5 {[%emt 0:00:31]} 67. Ke8 {[%emt 0:00:31]} Rf3 {[%emt 0:01:12]} 68. Ra4 {[%emt 0:00:37]} Rh3 {[%emt 0:01:34]} 69. Kf7 {[%emt 0:00:12]} Rg3 {[%emt 0:00:44]} 70. Ra5+ {[%emt 0:00:33]} Kg4 {[%emt 0:00:15]} 71. Kg7 {[%emt 0:00:33]} h5 {[%emt 0:00:24]} 72. Kg6 {[%emt 0:00:45]} Re3 {[%emt 0:00:01]} 73. Ra4+ {[%emt 0:00:18]} Kh3 {[%emt 0:00:29]} 74. Bg5 {[%emt 0:00:17]} Rg3 {[%emt 0:01:18]} 75. Kxh5 {[%emt 0:00:13]} 1-0

[Event "Asian Zonal-ch 3.5 Women 2019"]
[Site "Zi Bo"]
[Date "2019.09.06"]
[Round "3.5"]
[White "Li, Xueyi"]
[Black "Gu, Tianlu"]
[Result "1/2-1/2"]
[ECO "E04"]
[WhiteElo "2323"]
[BlackElo "2239"]
[Annotator "ChessBase"]
[PlyCount "136"]
[EventDate "2019.09.05"]
[EventType "swiss"]
[EventCountry "CHN"]
[SourceTitle "playchess.com"]
[Source "ChessBase"]
[SourceQuality "1"]
[TimeControl "5400+30"]

1. d4 {[%emt 0:00:00]} Nf6 {[%emt 0:02:25]} 2. Nf3 {[%emt 0:00:00]} e6 {[%emt 0:00:19]} 3. g3 {[%emt 0:00:36]} d5 {[%emt 0:00:23]} 4. Bg2 {[%emt 0:00:07]} c5 {[%emt 0:00:12]} 5. O-O {[%emt 0:00:24]} Nc6 {[%emt 0:00:10]} 6. c4 {[%emt 0:02:07]} dxc4 {[%emt 0:00:16]} 7. dxc5 {[%emt 0:04:38]} Qxd1 {[%emt 0:00:23]} 8. Rxd1 {[%emt 0:00:05]} Bxc5 {[%emt 0:00:08]} 9. Nfd2 {[%emt 0:00:05]} Na5 {[%emt 0:00:35]} 10. Na3 {[%emt 0:02:09]} Bxa3 {[%emt 0:00:13]} 11. bxa3 {[%emt 0:00:08]} Bd7 {[%emt 0:00:29]} 12. Bb2 {[%emt 0:06:30]} Bb5 {[%emt 0:00:36]} 13. Bc3 {[%emt 0:00:49]} Nc6 {[%emt 0:00:14]} 14. Rab1 {[%emt 0:01:23]} Ba6 {[%emt 0:05:28]} 15. Bxf6 {[%emt 0:01:43]} gxf6 {[%emt 0:00:10]} 16. Ne4 {[%emt 0:02:31]} O-O {[%emt 0:04:24]} 17. Nxf6+ {[%emt 0:09:09]} Kg7 {[%emt 0:00:20]} 18. Bxc6 {[%emt 0:02:05]} bxc6 {[%emt 0:07:58]} 19. Ne4 {[%emt 0:00:07]} Rfd8 {[%emt 0:04:33]} 20. Rdc1 {[%emt 0:07:14]} Rd5 {[%emt 0:04:03]} 21. Nc3 {[%emt 0:00:13]} Rd2 {[%emt 0:01:02]} 22. Rb4 {[%emt 0:00:37]} c5 {[%emt 0:12:12]} 23. Ra4 {[%emt 0:02:03]} Rd6 {[%emt 0:04:01]} 24. Ra5 {[%emt 0:07:37]} Rc8 {[%emt 0:03:56]} 25. Ne4 {[%emt 0:04:00]} Rdc6 {[%emt 0:00:11]} 26. f3 {[%emt 0:01:51]} R8c7 {[%emt 0:13:09]} 27. Kf2 {[%emt 0:01:49]} f5 {[%emt 0:03:03]} 28. Nd2 {[%emt 0:01:15]} Kf6 {[%emt 0:02:50]} 29. f4 {[%emt 0:04:04]} e5 {[%emt 0:03:23]} 30. Nf3 {[%emt 0:05:06]} exf4 {[%emt 0:00:40]} 31. gxf4 {[%emt 0:00:19]} Rd6 {[%emt 0:09:51]} 32. Ne5 {[%emt 0:01:41]} Re6 {[%emt 0:01:26]} 33. Rxc5 {[%emt 0:03:04]} Rxc5 {[%emt 0:07:21]} 34. Nd7+ {[%emt 0:00:07]} Ke7 {[%emt 0:02:42]} 35. Nxc5 {[%emt 0:00:17]} Rc6 {[%emt 0:00:05]} 36. Nxa6 {[%emt 0:00:31]} Rxa6 {[%emt 0:00:04]} 37. Rxc4 {[%emt 0:00:06]} Rxa3 {[%emt 0:00:04]} 38. Rc7+ {[%emt 0:00:05]} Kf6 {[%emt 0:01:04]} 39. Rxh7 {[%emt 0:00:21]} Rxa2 {[%emt 0:01:28]} 40. Rh6+ {[%emt 0:00:06]} Kg7 {[%emt 0:00:07]} 41. Rc6 {[%emt 0:00:07]} a5 {[%emt 0:00:24]} 42. Ra6 {[%emt 0:08:02]} a4 {[%emt 0:00:15]} 43. h4 {[%emt 0:02:47]} Ra1 {[%emt 0:01:22]} 44. Ke3 {[%emt 0:02:42]} Rh1 {[%emt 0:02:22]} 45. Kd4 {[%emt 0:03:38]} Rxh4 {[%emt 0:00:13]} 46. Ke5 {[%emt 0:00:06]} Rh2 {[%emt 0:00:28]} 47. Ra7+ {[%emt 0:04:32]} Kg8 {[%emt 0:02:13]} 48. e3 {[%emt 0:02:11]} Re2 {[%emt 0:00:47]} 49. Kd4 {[%emt 0:00:39]} a3 {[%emt 0:00:40]} 50. Rxa3 {[%emt 0:00:15]} Kf7 {[%emt 0:01:45]} 51. Ke5 {[%emt 0:01:32]} Kg6 {[%emt 0:00:04]} 52. Rd3 {[%emt 0:00:52]} Re1 {[%emt 0:00:17]} 53. Rd6+ {[%emt 0:03:30]} Kf7 {[%emt 0:00:25]} 54. Rd3 {[%emt 0:01:18]} Kg6 {[%emt 0:00:06]} 55. Rc3 {[%emt 0:00:05]} Re2 {[%emt 0:00:11]} 56. Rc6+ {[%emt 0:00:30]} Kg7 {[%emt 0:03:53]} 57. Kxf5 {[%emt 0:00:43]} Rxe3 {[%emt 0:00:05]} 58. Rc7+ {[%emt 0:00:03]} Kh6 {[%emt 0:00:38]} 59. Kf6 {[%emt 0:00:40]} Ra3 {[%emt 0:00:19]} 60. Re7 {[%emt 0:00:16]} Ra5 {[%emt 0:00:47]} 61. Re5 {[%emt 0:01:20]} Ra7 {[%emt 0:00:32]} 62. Re1 {[%emt 0:01:26]} Ra6+ {[%emt 0:00:06]} 63. Re6 {[%emt 0:01:00]} Ra7 {[%emt 0:00:09]} 64. f5 {[%emt 0:00:04]} Rb7 {[%emt 0:00:56]} 65. Rd6 {[%emt 0:00:39]} Ra7 {[%emt 0:00:12]} 66. Rd1 {[%emt 0:00:40]} Ra6+ {[%emt 0:00:08]} 67. Ke7 {[%emt 0:01:05]} Kg5 {[%emt 0:00:26]} 68. Rf1 {[%emt 0:00:45]} Ra7+ {[%emt 0:00:14] Rf3} 1/2-1/2

[Event "Asian Zonal-ch 3.5 Women 2019"]
[Site "Zi Bo"]
[Date "2019.09.06"]
[Round "3.6"]
[White "Hu, Yu A."]
[Black "Song, Yuxin"]
[Result "1/2-1/2"]
[ECO "B90"]
[WhiteElo "2105"]
[BlackElo "2305"]
[Annotator "ChessBase"]
[PlyCount "144"]
[EventDate "2019.09.05"]
[EventType "swiss"]
[EventCountry "CHN"]
[SourceTitle "playchess.com"]
[Source "ChessBase"]
[SourceQuality "1"]
[TimeControl "5400+30"]

1. e4 {[%emt 0:00:00]} c5 {[%emt 0:00:00]} 2. Nf3 {[%emt 0:01:06]} d6 {[%emt 0:00:00]} 3. d4 {[%emt 0:00:55]} cxd4 {[%emt 0:00:00]} 4. Nxd4 {[%emt 0:00:08]} Nf6 {[%emt 0:00:03]} 5. Nc3 {[%emt 0:00:10]} a6 {[%emt 0:00:06]} 6. h3 {[%emt 0:03:35]} e5 {[%emt 0:00:09]} 7. Nb3 {[%emt 0:00:11]} h5 {[%emt 0:15:23]} 8. Be3 {[%emt 0:11:39]} Be6 {[%emt 0:01:22]} 9. Qf3 {[%emt 0:06:01]} Nbd7 {[%emt 0:27:07]} 10. O-O-O {[%emt 0:00:39]} Qc7 {[%emt 0:11:36]} 11. Rg1 {[%emt 0:07:16]} Rc8 {[%emt 0:05:38]} 12. Rd2 {[%emt 0:00:08]} Nb6 {[%emt 0:01:57]} 13. Bxb6 {[%emt 0:03:47]} Qxb6 {[%emt 0:00:02]} 14. g4 {[%emt 0:00:21]} hxg4 {[%emt 0:09:41]} 15. hxg4 {[%emt 0:00:06]} Rxc3 {[%emt 0:00:18]} 16. bxc3 {[%emt 0:00:53]} Qc6 {[%emt 0:01:11]} 17. Qd3 {[%emt 0:13:27]} Nxg4 {[%emt 0:03:49]} 18. Na5 {[%emt 0:11:00]} Qc7 {[%emt 0:05:51]} 19. Nc4 {[%emt 0:00:10]} g6 {[%emt 0:05:43]} 20. Nxd6+ {[%emt 0:02:13]} Bxd6 {[%emt 0:00:07]} 21. Qxd6 {[%emt 0:00:10]} Qxd6 {[%emt 0:00:02]} 22. Rxd6 {[%emt 0:00:23]} Nxf2 {[%emt 0:00:50]} 23. Bd3 {[%emt 0:03:47]} Rh4 {[%emt 0:01:40]} 24. Rb6 {[%emt 0:15:38]} Bc8 {[%emt 0:01:41]} 25. Rg5 {[%emt 0:01:39]} Rh1+ {[%emt 0:04:06]} 26. Kb2 {[%emt 0:00:38]} Rh5 {[%emt 0:01:43]} 27. Rxh5 {[%emt 0:02:01]} gxh5 {[%emt 0:00:01]} 28. Kc1 {[%emt 0:01:42]} Nh3 {[%emt 0:02:42]} 29. Kd2 {[%emt 0:01:28]} Nf4 {[%emt 0:00:35]} 30. Ke3 {[%emt 0:01:50]} Ke7 {[%emt 0:00:14]} 31. Kf3 {[%emt 0:01:09]} h4 {[%emt 0:00:57]} 32. c4 {[%emt 0:02:19]} h3 {[%emt 0:00:36]} 33. Kg3 {[%emt 0:00:07]} Nh5+ {[%emt 0:00:37]} 34. Kh2 {[%emt 0:00:06]} Nf6 {[%emt 0:00:31]} 35. Rb4 {[%emt 0:04:24]} Kd6 {[%emt 0:00:29]} 36. c5+ {[%emt 0:00:07]} Kc7 {[%emt 0:00:01]} 37. Rb1 {[%emt 0:02:42]} Be6 {[%emt 0:00:37]} 38. a3 {[%emt 0:00:09]} Nd7 {[%emt 0:00:22]} 39. Bf1 {[%emt 0:00:18]} Nxc5 {[%emt 0:00:04]} 40. Re1 {[%emt 0:00:07]} Bd7 {[%emt 0:01:34]} 41. Bxh3 {[%emt 0:00:07]} Bc6 {[%emt 0:00:07]} 42. Bg2 {[%emt 0:00:11]} f6 {[%emt 0:00:48]} 43. Kg3 {[%emt 0:00:09]} Ne6 {[%emt 0:00:27]} 44. Rf1 {[%emt 0:00:52]} Nc5 {[%emt 0:00:33]} 45. Re1 {[%emt 0:00:30]} b5 {[%emt 0:00:01]} 46. Kg4 {[%emt 0:00:25]} Bd7+ {[%emt 0:00:18]} 47. Kh5 {[%emt 0:00:11]} Ne6 {[%emt 0:00:47]} 48. Bf3 {[%emt 0:00:40]} Be8+ {[%emt 0:00:49]} 49. Kh6 {[%emt 0:00:11]} Kd6 {[%emt 0:00:23]} 50. Bg4 {[%emt 0:00:56]} Nd4 {[%emt 0:00:41]} 51. Bd1 {[%emt 0:01:01]} Bd7 {[%emt 0:00:38]} 52. c3 {[%emt 0:00:28]} Nc6 {[%emt 0:00:17]} 53. Kg6 {[%emt 0:00:26]} f5 {[%emt 0:00:41]} 54. exf5 {[%emt 0:00:09]} Ne7+ {[%emt 0:00:02]} 55. Kf6 {[%emt 0:02:00]} Nd5+ {[%emt 0:00:12]} 56. Kg5 {[%emt 0:00:08]} Nxc3 {[%emt 0:01:10]} 57. Bb3 {[%emt 0:01:57]} e4 {[%emt 0:00:35]} 58. Kg6 {[%emt 0:01:02]} Ke5 {[%emt 0:00:31]} 59. f6 {[%emt 0:00:15]} Be8+ {[%emt 0:00:01]} 60. Kg5 {[%emt 0:01:43]} Nd5 {[%emt 0:00:57]} 61. Bxd5 {[%emt 0:00:16]} Kxd5 {[%emt 0:00:03]} 62. Kf5 {[%emt 0:00:39]} Bd7+ {[%emt 0:00:07]} 63. Kg6 {[%emt 0:00:27]} Be6 {[%emt 0:00:06]} 64. f7 {[%emt 0:00:17]} Bxf7+ {[%emt 0:00:01]} 65. Kxf7 {[%emt 0:00:05]} Ke5 {[%emt 0:01:02]} 66. Ke7 {[%emt 0:01:58]} a5 {[%emt 0:00:50]} 67. Kd7 {[%emt 0:00:29]} Kd5 {[%emt 0:01:10]} 68. Kc7 {[%emt 0:01:13]} b4 {[%emt 0:00:04]} 69. axb4 {[%emt 0:00:44]} axb4 {[%emt 0:00:02]} 70. Kb6 {[%emt 0:00:05]} Kd4 {[%emt 0:00:36]} 71. Kb5 {[%emt 0:00:05]} Kd3 {[%emt 0:00:06]} 72. Kxb4 {[%emt 0:00:22]} e3 {[%emt 0:00:01]} 1/2-1/2

[Event "Asian Zonal-ch 3.5 Women 2019"]
[Site "Zi Bo"]
[Date "2019.09.06"]
[Round "3.7"]
[White "Zhao, Shengxin"]
[Black "Bai, Xue"]
[Result "0-1"]
[ECO "A09"]
[WhiteElo "2162"]
[BlackElo "2093"]
[Annotator "ChessBase"]
[PlyCount "68"]
[EventDate "2019.09.05"]
[EventType "swiss"]
[EventCountry "CHN"]
[SourceTitle "playchess.com"]
[Source "ChessBase"]
[SourceQuality "1"]
[TimeControl "5400+30"]

1. Nf3 {[%emt 0:00:15]} Nf6 {[%emt 0:00:19]} 2. g3 {[%emt 0:01:49]} e6 {[%emt 0:00:21]} 3. Bg2 {[%emt 0:00:54]} d5 {[%emt 0:00:06]} 4. O-O {[%emt 0:00:42]} c5 {[%emt 0:00:28]} 5. c4 {[%emt 0:01:21]} d4 {[%emt 0:01:18]} 6. d3 {[%emt 0:02:00]} Nc6 {[%emt 0:01:21]} 7. e3 {[%emt 0:00:15]} Be7 {[%emt 0:05:32]} 8. exd4 {[%emt 0:00:43]} cxd4 {[%emt 0:01:29]} 9. Re1 {[%emt 0:00:43]} O-O {[%emt 0:00:49]} 10. Na3 {[%emt 0:08:49]} Bxa3 {[%emt 0:10:21]} 11. bxa3 {[%emt 0:02:36]} Qd6 {[%emt 0:00:08]} 12. Bf4 {[%emt 0:01:59]} Qxa3 {[%emt 0:03:10]} 13. Ne5 {[%emt 0:01:04]} Nxe5 {[%emt 0:04:56]} 14. Bxe5 {[%emt 0:00:27]} Rd8 {[%emt 0:06:25]} 15. Bxf6 {[%emt 0:01:32]} gxf6 {[%emt 0:00:02]} 16. Qg4+ {[%emt 0:00:17]} Kf8 {[%emt 0:00:12]} 17. Qh4 {[%emt 0:02:45]} Ke7 {[%emt 0:00:06]} 18. Qxh7 {[%emt 0:14:58]} Rb8 {[%emt 0:02:25]} 19. Rab1 {[%emt 0:29:46]} b6 {[%emt 0:00:42]} 20. Rb5 {[%emt 0:10:22]} Bd7 {[%emt 0:01:52]} 21. Rd5 {[%emt 0:10:33]} Rh8 {[%emt 0:07:18]} 22. Qe4 {[%emt 0:03:58]} Bc6 {[%emt 0:00:24]} 23. Qf4 {[%emt 0:00:58]} Bxd5 {[%emt 0:01:12]} 24. Qc7+ {[%emt 0:00:21]} Kf8 {[%emt 0:00:01]} 25. Qxb8+ {[%emt 0:00:06]} Kg7 {[%emt 0:00:04]} 26. Qf4 {[%emt 0:00:20]} Bxg2 {[%emt 0:00:16]} 27. Kxg2 {[%emt 0:00:02]} Qxd3 {[%emt 0:00:42]} 28. Qg4+ {[%emt 0:00:01]} Kf8 {[%emt 0:00:30]} 29. Qe4 {[%emt 0:02:29]} Qxc4 {[%emt 0:01:16]} 30. Qf4 {[%emt 0:01:03]} Qc6+ {[%emt 0:01:51]} 31. Qe4 {[%emt 0:00:34]} Qd6 {[%emt 0:01:48]} 32. Rc1 {[%emt 0:00:04]} f5 {[%emt 0:01:40]} 33. Qf3 {[%emt 0:01:46]} Kg7 {[%emt 0:00:22]} 34. Rc6 {[%emt 0:00:08]} Qe5 {[%emt 0:00:15]} 0-1